bitfinex/quotes_BTCUSD_20260110
["timestamp","ask_amount","ask_price","bid_price","bid_amount"]
[1768008090774,0.04702634,90668.0,90666.0,0.05514745]
[1768008090979,0.04702634,90668.0,90667.0,0.05514685]
[1768008091174,0.00039,90672.0,90669.0,0.01102912]
[1768008091603,0.00039,90672.0,90666.0,0.06617686]
[1768008091821,0.00039,90672.0,90667.0,0.01102937]
[1768008092043,0.000197,90667.0,90666.0,0.01102949]
[1768008092240,0.00039,90672.0,90666.0,0.04649086]
[1768008092441,0.00039,90672.0,90664.0,0.03310973]
[1768008092648,0.00039,90672.0,90665.0,0.01102961]
[1768008093069,0.00039,90672.0,90665.0,0.01083261]
[1768008093279,0.00039,90672.0,90664.0,0.03310973]
[1768008093526,0.00039,90672.0,90663.0,0.02208]
[1768008096079,0.03,90670.0,90663.0,0.02208]
[1768008099727,0.00039,90672.0,90663.0,0.02208]
[1768008100658,0.00039,90672.0,90663.0,0.03310985]
[1768008100863,0.03039,90672.0,90663.0,0.03310985]
[1768008101262,0.03039,90672.0,90664.0,0.01102973]
[1768008101891,0.00039,90672.0,90664.0,0.01102973]
[1768008102060,0.00039,90672.0,90663.0,0.03310985]
[1768008102264,0.00039,90672.0,90663.0,0.02208]
[1768008103527,0.03039,90672.0,90663.0,0.02208]
[1768008104023,0.04141876,90672.0,90663.0,0.02208]
[1768008104222,0.03,90667.0,90663.0,0.07095551]
[1768008104410,0.03,90667.0,90663.0,0.02208]
[1768008105348,0.03,90666.0,90663.0,0.02208]
[1768008106522,0.03,90665.0,90663.0,0.02208]
[1768008107434,0.03,90664.0,90663.0,0.02208]
[1768008108488,0.00039,90672.0,90663.0,0.02208]
[1768008109538,0.03039,90672.0,90663.0,0.02208]
[1768008110204,0.03039,90672.0,90665.0,0.01102961]
[1768008110406,0.03,90671.0,90665.0,0.01102961]
[1768008110829,0.03,90671.0,90664.0,0.01102973]
[1768008111229,0.03,90671.0,90665.0,0.01102961]
[1768008111395,0.03,90671.0,90664.0,0.01102973]
[1768008111396,0.07927068,90671.0,90664.0,0.01102973]
[1768008112240,0.07927068,90671.0,90663.0,0.02208]
[1768008113121,0.07927068,90671.0,90663.0,0.03310985]
[1768008113324,0.07927068,90671.0,90663.0,0.02208]
[1768008114312,0.07927068,90666.0,90663.0,0.02208]
[1768008116430,0.07966068,90672.0,90663.0,0.02208]
[1768008116635,0.03039,90672.0,90663.0,0.02208]
[1768008117646,0.03,90671.0,90663.0,0.02208]
[1768008118790,0.00039,90672.0,90663.0,0.02208]
[1768008120021,0.03039,90672.0,90663.0,0.02208]
[1768008121346,0.03,90671.0,90663.0,0.02208]
[1768008121562,0.03,90671.0,90663.0,0.06733309]
[1768008121775,0.00039,90672.0,90671.0,0.001]
[1768008121992,0.00039,90672.0,90667.0,0.04525309]
[1768008122254,0.00029987,90672.0,90667.0,0.04525309]
[1768008122466,0.00020974,90672.0,90667.0,0.04525309]
[1768008123118,0.00020974,90672.0,90666.0,0.01102949]
[1768008123732,0.00020974,90672.0,90665.0,0.01102961]
[1768008125755,0.00020974,90672.0,90666.0,0.01102949]
[1768008125916,0.00020974,90672.0,90665.0,0.01102961]
[1768008126119,0.03020974,90672.0,90666.0,0.01102949]
[1768008126342,0.03020974,90672.0,90665.0,0.01102961]
[1768008126544,0.03020974,90672.0,90666.0,0.01102949]
[1768008126745,0.07688107,90672.0,90667.0,0.01102937]
[1768008126908,0.07688107,90672.0,90665.0,0.01102961]
[1768008127324,0.07688107,90672.0,90666.0,0.01102949]
[1768008127521,0.07688107,90672.0,90667.0,0.01102937]
[1768008127725,0.07688107,90672.0,90666.0,0.01102949]
[1768008127926,0.07688107,90672.0,90667.0,0.01102937]
[1768008128138,0.03,90671.0,90667.0,0.01102937]
[1768008128354,0.03,90671.0,90667.0,0.05917786]
[1768008129021,0.03,90671.0,90668.0,0.05917773]
[1768008129223,0.00020974,90672.0,90668.0,0.05917773]
[1768008129933,0.00020974,90672.0,90669.0,0.04814849]
[1768008131361,0.00011959,90672.0,90669.0,0.04814849]
[1768008131522,2.944e-05,90672.0,90669.0,0.04814849]
[1768008135288,2.944e-05,90672.0,90667.0,0.01102937]
[1768008135482,2.944e-05,90672.0,90667.0,0.05917786]
[1768008136227,2.944e-05,90672.0,90668.0,0.01102924]
[1768008137477,2.944e-05,90672.0,90667.0,0.04814849]
[1768008137908,2.944e-05,90672.0,90667.0,0.05917786]
[1768008139394,2.944e-05,90672.0,90667.0,0.04814849]
[1768008139590,2.944e-05,90672.0,90668.0,0.05917773]
[1768008139818,2.944e-05,90672.0,90668.0,0.04814849]
[1768008139995,2.944e-05,90672.0,90668.0,0.05917773]
[1768008140208,2.944e-05,90672.0,90668.0,0.04814849]
[1768008141023,2.944e-05,90672.0,90668.0,0.05917773]
[1768008141210,2.944e-05,90672.0,90669.0,0.01102912]
[1768008142013,0.0883441,90679.0,90674.0,0.01102851]
[1768008142236,0.0883441,90679.0,90676.0,0.01102827]
[1768008142443,0.03,90681.0,90675.0,0.01102839]
[1768008142757,0.03,90681.0,90676.0,0.01102827]
[1768008143000,0.03,90681.0,90672.0,0.01102876]
[1768008143203,0.03,90681.0,90675.0,0.01102839]
[1768008143408,0.03,90680.0,90675.0,0.01102839]
[1768008143612,0.03,90680.0,90672.0,0.01102876]
[1768008143815,0.03,90680.0,90673.0,0.01102864]
[1768008144011,0.03,90680.0,90674.0,0.01102851]
[1768008144531,0.03,90683.0,90674.0,0.01102851]
[1768008144747,0.03,90683.0,90672.0,0.06617251]
[1768008144748,0.03,90683.0,90672.0,0.01102876]
[1768008145057,0.03,90683.0,90672.0,0.05917725]
[1768008145233,0.03,90683.0,90674.0,0.04814849]
[1768008145441,0.02208,90684.0,90674.0,0.04814849]
[1768008146287,0.01102742,90683.0,90674.0,0.04814849]
[1768008147484,0.0331073,90684.0,90674.0,0.04814849]
[1768008148223,0.02208,90684.0,90674.0,0.04814849]
[1768008149579,0.0331073,90684.0,90674.0,0.04814849]
[1768008149766,0.04102742,90683.0,90674.0,0.04814849]
[1768008149983,0.03,90681.0,90670.0,0.02208]
[1768008150163,0.04102766,90681.0,90670.0,0.02208]
[1768008150360,0.03,90681.0,90670.0,0.02208]
[1768008150783,0.03,90681.0,90670.0,0.07022849]
[1768008151133,0.03,90680.0,90670.0,0.07022849]
[1768008151280,0.03,90680.0,90670.0,0.08125749]
[1768008151488,0.03,90680.0,90671.0,0.04814849]
[1768008152165,0.03,90679.0,90671.0,0.05917737]
[1768008152562,0.03,90679.0,90671.0,0.04814849]
[1768008153149,0.04102742,90683.0,90671.0,0.04814849]
[1768008153539,0.03,90681.0,90671.0,0.04814849]
[1768008153968,0.03,90679.0,90671.0,0.04814849]
[1768008154141,0.04102815,90677.0,90670.0,0.02208]
[1768008154341,0.03,90675.0,90670.0,0.02208]
[1768008154710,0.03,90669.0,90665.0,0.05949296]
[1768008154910,0.03,90669.0,90664.0,0.08157296]
[1768008155570,0.03,90669.0,90664.0,0.02208]
[1768008155724,0.15451605,90673.0,90664.0,0.02208]
[1768008155725,0.03,90668.0,90664.0,0.02208]
[1768008156973,0.03,90667.0,90664.0,0.02208]
[1768008157874,0.03,90666.0,90664.0,0.02208]
[1768008158291,0.03,90666.0,90656.0,0.04597197]
[1768008158292,0.03,90658.0,90656.0,0.00050202]
[1768008159274,0.03,90657.0,90656.0,0.00050202]
[1768008162551,0.04103034,90659.0,90656.0,0.00050202]
[1768008163321,0.0883441,90658.0,90656.0,0.00050202]
[1768008163536,0.03,90657.0,90656.0,0.00050202]
[1768008165910,0.03,90657.0,90645.0,0.000152]
[1768008165911,0.04745316,90635.0,90624.0,0.24958708]
[1768008166119,0.04745316,90635.0,90577.0,0.0004]
[1768008166120,0.04745316,90608.0,90603.0,0.0001533]
[1768008166332,0.04745316,90608.0,90586.0,0.04546995]
[1768008166333,0.1654967,90604.0,90591.0,0.01103862]
[1768008166537,0.1654967,90604.0,90589.0,0.06758995]
[1768008166538,0.03,90599.0,90589.0,0.06758995]
[1768008166737,0.03,90596.0,90589.0,0.06758995]
[1768008167159,0.03,90596.0,90590.0,0.04546995]
[1768008167404,0.0110374,90601.0,90596.0,0.05646995]
[1768008167609,0.0110374,90601.0,90596.0,0.05546995]
[1768008167814,0.05518885,90598.0,90596.0,0.04546995]
[1768008167949,0.03,90592.0,90591.0,0.04546995]
[1768008168153,0.01103813,90595.0,90592.0,0.001]
[1768008168376,0.01103801,90596.0,90592.0,0.04646995]
[1768008168592,0.26308972,90601.0,90592.0,0.04646995]
[1768008168796,0.01103764,90599.0,90592.0,0.04546995]
[1768008168998,0.03,90599.0,90592.0,0.04546995]
[1768008169202,0.04103764,90599.0,90592.0,0.04546995]
[1768008169401,0.03,90599.0,90592.0,0.04546995]
[1768008170097,0.03,90598.0,90592.0,0.04546995]
[1768008170691,0.274127,90602.0,90598.0,0.001]
[1768008170692,0.01103752,90600.0,90598.0,0.001]
[1768008170892,0.01103764,90599.0,90598.0,0.001]
[1768008171100,0.01103764,90599.0,90598.0,0.02312]
[1768008171309,0.01103764,90599.0,90598.0,0.02212]
[1768008171612,0.03,90599.0,90598.0,0.02212]
[1768008171967,0.03,90599.0,90598.0,0.02240167]
[1768008172865,0.03,90594.0,90584.0,0.04677973]
[1768008173073,0.03,90594.0,90585.0,0.02212]
[1768008173278,0.27412724,90600.0,90594.0,0.001]
[1768008173476,0.0110374,90601.0,90586.0,0.01103923]
[1768008173875,0.03,90598.0,90587.0,0.02212]
[1768008174224,0.03,90598.0,90587.0,0.03315911]
[1768008174422,0.26308972,90600.0,90587.0,0.02212]
[1768008174644,0.26308972,90600.0,90588.0,0.01103898]
[1768008174844,0.03,90599.0,90587.0,0.03315911]
[1768008175257,0.03,90599.0,90588.0,0.01103898]
[1768008176098,0.03,90599.0,90589.0,0.01103886]
[1768008176976,0.03,90601.0,90599.0,0.001]
[1768008177182,0.03,90601.0,90600.0,0.02212]
[1768008177799,0.09938053,90609.0,90601.0,0.000954]
[1768008177996,0.03,90607.0,90601.0,0.000954]
[1768008178328,0.04103667,90607.0,90602.0,0.04637973]
[1768008178527,0.03,90605.0,90602.0,0.04637973]
[1768008178940,0.00050233,90606.0,90602.0,0.04637973]
[1768008178941,0.05968621,90619.0,90602.0,0.04637973]
[1768008179112,0.0883441,90614.0,90605.0,0.04733373]
[1768008179320,0.26308972,90620.0,90607.0,0.04637973]
[1768008179479,0.03,90617.0,90608.0,0.04637973]
[1768008179678,0.03,90617.0,90609.0,0.06849973]
[1768008180102,0.04103545,90617.0,90609.0,0.06849973]
[1768008180334,0.03,90614.0,90609.0,0.06849973]
[1768008181354,0.03,90613.0,90609.0,0.06849973]
[1768008182362,0.03,90612.0,90609.0,0.02212]
[1768008183387,0.03,90611.0,90609.0,0.02212]
[1768008183823,0.03,90611.0,90609.0,0.02205186]
[1768008184398,0.03,90610.0,90609.0,0.02205186]
[1768008189689,0.03,90613.0,90609.0,0.02205186]
[1768008189896,0.04103594,90613.0,90609.0,0.02205186]
[1768008190170,0.03,90611.0,90609.0,0.02205186]
[1768008190922,0.03,90611.0,90609.0,0.02196186]
[1768008191634,0.03,90610.0,90609.0,0.02196186]
[1768008194739,0.03,90612.0,90609.0,0.02196186]
[1768008197551,0.03,90612.0,90609.0,0.02189372]
[1768008197994,0.03,90611.0,90609.0,0.02189372]
[1768008198194,0.01103533,90618.0,90609.0,0.07162083]
[1768008198398,0.01103545,90617.0,90611.0,0.000999]
[1768008198619,0.01103545,90617.0,90609.0,0.07162083]
[1768008198994,0.01103545,90617.0,90609.0,0.02189372]
[1768008199382,0.04103557,90616.0,90609.0,0.02189372]
[1768008199571,0.03,90616.0,90609.0,0.02189372]
[1768008200072,0.04103557,90616.0,90609.0,0.02189372]
[1768008200268,0.03,90616.0,90609.0,0.02189372]
[1768008200651,0.03,90614.0,90609.0,0.07162083]
[1768008201666,0.03,90613.0,90609.0,0.07162083]
[1768008202768,0.03,90612.0,90609.0,0.07162083]
[1768008203840,0.01103557,90616.0,90611.0,0.000999]
[1768008204105,0.01103545,90617.0,90611.0,0.000999]
[1768008204306,0.01103545,90617.0,90609.0,0.07162083]
[1768008204459,0.01103557,90616.0,90609.0,0.07162083]
[1768008204983,0.03,90615.0,90609.0,0.07162083]
[1768008205926,0.03,90615.0,90609.0,0.02189372]
[1768008206417,0.03,90619.0,90615.0,0.000999]
[1768008206954,0.03,90619.0,90609.0,0.03293015]
[1768008207358,0.03,90621.0,90609.0,0.03293015]
[1768008207555,0.03,90621.0,90609.0,0.03303128]
[1768008207735,0.03,90619.0,90609.0,0.02199485]
[1768008207956,0.03,90619.0,90609.0,0.03303128]
[1768008208358,0.03,90619.0,90610.0,0.0110363]
[1768008208737,0.03,90619.0,90611.0,0.01103618]
[1768008208938,0.03,90619.0,90610.0,0.0110363]
[1768008209366,0.03,90619.0,90609.0,0.03303128]
[1768008209367,0.03,90619.0,90609.0,0.02199485]
[1768008210220,0.03,90619.0,90609.0,0.03303128]
[1768008210684,0.03,90619.0,90609.0,0.02199485]
[1768008210885,0.03,90618.0,90609.0,0.03303128]
[1768008211062,0.03,90618.0,90610.0,0.0110363]
[1768008211868,0.03,90623.0,90610.0,0.0110363]
[1768008212067,0.03,90621.0,90609.0,0.08275839]
[1768008212272,0.03,90619.0,90609.0,0.07172196]
[1768008212671,0.03,90619.0,90609.0,0.08275839]
[1768008212838,0.03,90619.0,90610.0,0.0110363]
[1768008213391,0.03,90618.0,90609.0,0.08275839]
[1768008213611,0.03,90618.0,90610.0,0.0110363]
[1768008214420,0.03,90617.0,90609.0,0.08275839]
[1768008214757,0.03,90617.0,90609.0,0.07172196]
[1768008215272,0.03,90616.0,90609.0,0.07172196]
[1768008215533,0.03,90616.0,90609.0,0.08275839]
[1768008215735,0.0110346,90624.0,90616.0,0.000999]
[1768008215933,0.0110346,90624.0,90617.0,0.02212]
[1768008216666,0.03,90623.0,90617.0,0.02212]
[1768008218106,0.03,90623.0,90618.0,0.04416]
[1768008218317,0.03,90621.0,90618.0,0.04409187]
[1768008218747,0.03,90621.0,90618.0,0.04387345]
[1768008218976,0.03,90621.0,90618.0,0.04372318]
[1768008219198,0.03,90620.0,90618.0,0.04372318]
[1768008220261,0.0451335,90623.0,90620.0,0.000999]
[1768008220500,0.0451335,90619.0,90618.0,0.04372318]
[1768008225671,0.000999,90620.0,90618.0,0.04372318]
[1768008225888,0.030999,90620.0,90618.0,0.04372318]
[1768008226846,0.000999,90620.0,90618.0,0.04372318]
[1768008230017,0.000999,90620.0,90618.0,0.04365505]
[1768008235469,0.03,90624.0,90618.0,0.04365505]
[1768008235656,0.0883441,90627.0,90620.0,0.01103509]
[1768008235878,0.0883441,90627.0,90620.0,0.04803201]
[1768008236503,0.03,90626.0,90620.0,0.04803201]
[1768008237612,0.03,90626.0,90618.0,0.04365505]
[1768008238915,0.03,90626.0,90618.0,0.05469038]
[1768008239246,0.03,90626.0,90619.0,0.01103521]
[1768008239470,0.03,90626.0,90618.0,0.05469038]
[1768008239866,0.03,90626.0,90619.0,0.01103521]
[1768008240343,0.03,90626.0,90620.0,0.01103509]
[1768008240581,0.03,90626.0,90619.0,0.01103521]
[1768008240807,0.03,90626.0,90618.0,0.05469038]
[1768008241491,0.03,90626.0,90619.0,0.01103521]
[1768008241679,0.03,90626.0,90618.0,0.05469038]
[1768008241878,0.03,90626.0,90618.0,0.04365505]
[1768008242226,0.03,90626.0,90618.0,0.05469038]
[1768008242777,0.03,90626.0,90619.0,0.01103521]
[1768008242982,0.03,90626.0,90618.0,0.05469038]
[1768008243186,0.03,90626.0,90619.0,0.01103521]
[1768008243755,0.03,90626.0,90620.0,0.01103509]
[1768008243955,0.03,90626.0,90619.0,0.01103521]
[1768008244942,0.03,90626.0,90619.0,0.01103521]
[1768008245081,0.03,90626.0,90618.0,0.05469038]
[1768008245309,0.03,90626.0,90618.0,0.04365505]
[1768008248837,0.03,90626.0,90618.0,0.05469038]
[1768008250085,0.00039,90628.0,90620.0,0.01103509]
[1768008250289,0.00039,90628.0,90619.0,0.01103521]
[1768008250491,0.00039,90628.0,90620.0,0.01103509]
[1768008250672,0.00039,90628.0,90619.0,0.01103521]
[1768008251103,0.00039,90628.0,90620.0,0.01103509]
[1768008251501,0.00039,90628.0,90619.0,0.01103521]
[1768008251697,0.00039,90628.0,90620.0,0.01103509]
[1768008251908,0.00039,90628.0,90619.0,0.01103521]
[1768008252957,0.00039,90628.0,90618.0,0.04365505]
[1768008253166,0.0795552,90619.0,90618.0,0.04365505]
[1768008253369,0.0785562,90614.0,90611.0,0.01103618]
[1768008253578,0.0785562,90614.0,90613.0,0.12593966]
[1768008253789,0.03,90614.0,90613.0,0.12593966]
[1768008253988,0.03,90614.0,90613.0,0.06628]
[1768008254219,0.03,90614.0,90613.0,0.12593966]
[1768008255009,0.0485562,90626.0,90614.0,0.01103582]
[1768008255219,0.0485562,90626.0,90615.0,0.0110357]
[1768008255368,0.0785562,90625.0,90615.0,0.0110357]
[1768008256312,0.0785562,90625.0,90614.0,0.01103582]
[1768008256458,0.0785562,90625.0,90616.0,0.06628]
[1768008257278,0.0785562,90625.0,90615.0,0.0110357]
[1768008257646,0.0785562,90625.0,90616.0,0.06628]
[1768008261036,0.0785562,90625.0,90616.0,0.07731557]
[1768008261877,0.0785562,90625.0,90616.0,0.06628]
[1768008262076,0.0785562,90625.0,90616.0,0.07731557]
[1768008262276,0.03,90624.0,90618.0,0.01103533]
[1768008263821,0.00039,90628.0,90618.0,0.01103533]
[1768008264480,0.00039,90628.0,90616.0,0.07731557]
[1768008264996,0.03,90627.0,90616.0,0.07731557]
[1768008265223,0.03,90627.0,90617.0,0.01103545]
[1768008265435,0.03,90627.0,90616.0,0.07731557]
[1768008265614,0.03,90627.0,90616.0,0.07069848]
[1768008265783,0.03,90627.0,90617.0,0.06628]
[1768008265981,0.00039,90628.0,90617.0,0.07731545]
[1768008266203,0.00039,90628.0,90617.0,0.06628]
[1768008266605,0.00039,90628.0,90617.0,0.07731545]
[1768008267321,0.00039,90628.0,90617.0,0.06628]
[1768008267442,0.00039,90628.0,90617.0,0.07731545]
[1768008268524,0.00039,90628.0,90617.0,0.06628]
[1768008268724,0.03,90627.0,90617.0,0.06628]
[1768008269445,0.04103423,90627.0,90617.0,0.06628]
[1768008270183,0.03,90625.0,90617.0,0.06628]
[1768008270380,0.03,90625.0,90616.0,0.05966291]
[1768008270586,0.03,90625.0,90617.0,0.06628]
[1768008271196,0.03,90624.0,90617.0,0.06628]
[1768008271399,0.03,90624.0,90618.0,0.06628]
[1768008272371,0.03,90623.0,90616.0,0.05966291]
[1768008272543,0.03,90621.0,90619.0,0.06628]
[1768008272745,0.03,90621.0,90616.0,0.05966291]
[1768008272885,0.03,90621.0,90617.0,0.06628]
[1768008273770,0.03,90621.0,90613.0,0.05966291]
[1768008273969,0.03,90621.0,90618.0,0.02212]
[1768008274462,0.03,90620.0,90618.0,0.02212]
[1768008274635,0.03,90620.0,90618.0,0.02196969]
[1768008275399,0.03,90625.0,90618.0,0.02196969]
[1768008276307,0.03,90622.0,90618.0,0.02196969]
[1768008277677,0.03,90623.0,90618.0,0.02196969]
[1768008278723,0.03,90620.0,90618.0,0.02196969]
[1768008278881,0.03,90620.0,90618.0,0.0214895]
[1768008279699,0.03,90619.0,90618.0,0.0214895]
[1768008280739,0.03,90624.0,90618.0,0.0214895]
[1768008281357,0.0410346,90624.0,90618.0,0.0214895]
[1768008284125,0.03,90624.0,90618.0,0.0214895]
[1768008284623,0.0410346,90624.0,90618.0,0.0214895]
[1768008286167,0.03,90620.0,90618.0,0.0204905]
[1768008286372,0.03,90620.0,90618.0,0.02034026]
[1768008287372,0.03,90621.0,90618.0,0.02034026]
[1768008288614,0.03,90622.0,90618.0,0.02034026]
[1768008290200,0.03,90620.0,90618.0,0.02034026]
[1768008291221,0.03,90621.0,90618.0,0.02034026]
[1768008292150,0.03,90621.0,90617.0,0.0001151]
[1768008292380,0.01103509,90620.0,90619.0,0.02212]
[1768008292562,0.03,90620.0,90619.0,0.02212]
[1768008293369,0.01142411,90628.0,90620.0,0.000999]
[1768008293717,0.03,90625.0,90620.0,0.000999]
[1768008293864,0.03,90625.0,90619.0,0.02212]
[1768008293865,0.04103448,90625.0,90619.0,0.02212]
[1768008294471,0.03,90625.0,90619.0,0.02212]
[1768008294735,0.03,90624.0,90619.0,0.02212]
[1768008295686,0.03,90626.0,90619.0,0.02212]
[1768008296851,0.04103436,90626.0,90619.0,0.02212]
[1768008297469,0.03,90623.0,90619.0,0.02212]
[1768008298475,0.03,90622.0,90619.0,0.02212]
[1768008299494,0.03,90621.0,90619.0,0.02212]
[1768008300574,0.03,90625.0,90619.0,0.02212]
[1768008301440,0.00039,90628.0,90625.0,0.000999]
[1768008301643,0.04780313,90627.0,90625.0,0.000999]
[1768008301866,0.00039,90628.0,90625.0,0.000999]
[1768008302077,0.00039,90628.0,90622.0,0.01103484]
[1768008302280,0.00039,90628.0,90623.0,0.04944006]
[1768008302486,0.00039,90628.0,90620.0,0.01103509]
[1768008302688,0.01103326,90635.0,90620.0,0.01103509]
[1768008302689,0.01103241,90642.0,90631.0,0.00961]
[1768008302889,0.0883441,90637.0,90632.0,0.02212]
[1768008303448,0.03,90636.0,90632.0,0.02212]
[1768008304348,0.03,90636.0,90633.0,0.04416]
[1768008306147,0.03,90636.0,90633.0,0.01102511]
[1768008306351,0.0883441,90637.0,90633.0,0.01102511]
[1768008306352,0.0883441,90637.0,90636.0,0.000699]
[1768008306531,0.00039,90636.0,90633.0,0.01102511]
[1768008310735,0.00039,90636.0,90633.0,0.02205861]
[1768008312733,0.00039,90636.0,90633.0,0.01102511]
[1768008313661,0.00039,90636.0,90633.0,0.02205861]
[1768008313842,0.00039,90636.0,90633.0,0.01102511]
[1768008315266,0.00030602,90636.0,90633.0,0.01102511]
[1768008326494,0.00030602,90636.0,90629.0,0.04579498]
[1768008326697,0.00030602,90636.0,90630.0,0.06628]
[1768008327081,0.0883441,90637.0,90630.0,0.06628]
[1768008329153,0.01103229,90643.0,90630.0,0.11207498]
[1768008329358,0.03,90642.0,90633.0,0.04579498]
[1768008329555,0.03,90642.0,90633.0,0.05682848]
[1768008330074,0.03,90642.0,90634.0,0.01103338]
[1768008331215,0.03,90642.0,90635.0,0.01103326]
[1768008331583,0.03,90642.0,90637.0,0.01103302]
[1768008331784,0.03,90642.0,90638.0,0.02212]
[1768008332574,0.03,90642.0,90638.0,0.0331529]
[1768008332775,0.03035243,90642.0,90638.0,0.02212]
[1768008333431,0.03035243,90642.0,90639.0,0.01103277]
[1768008333818,0.03035243,90642.0,90638.0,0.0331529]
[1768008334427,0.03035243,90642.0,90638.0,0.02212]
[1768008335449,0.03035243,90642.0,90638.0,0.0331529]
[1768008335655,0.03035243,90642.0,90638.0,0.02212]
[1768008338761,0.03035243,90642.0,90638.0,0.0331529]
[1768008339361,0.03035243,90642.0,90638.0,0.02212]
[1768008340106,0.03035243,90642.0,90638.0,0.0331529]
[1768008343042,0.03035243,90642.0,90638.0,0.02212]
[1768008343400,0.03035243,90642.0,90638.0,0.0331529]
[1768008345165,0.03035243,90642.0,90639.0,0.04416]
[1768008347548,0.03035243,90642.0,90639.0,0.00117067]
[1768008355482,0.03035243,90642.0,90639.0,0.01220344]
[1768008356117,0.0883441,90643.0,90639.0,0.00117067]
[1768008356319,0.03,90647.0,90640.0,0.01103265]
[1768008356525,0.03,90647.0,90639.0,0.01230457]
[1768008356743,0.03,90647.0,90640.0,0.01103265]
[1768008356907,0.03,90647.0,90639.0,0.01230457]
[1768008357089,0.03,90647.0,90644.0,0.01103216]
[1768008357283,0.0001871,90648.0,90644.0,0.01103216]
[1768008357284,0.0001871,90648.0,90645.0,0.02212]
[1768008357483,0.0001871,90648.0,90646.0,0.02212]
[1768008357689,0.0001871,90648.0,90647.0,0.02212]
[1768008358328,0.0301871,90648.0,90647.0,0.02212]
[1768008361471,0.0301871,90648.0,90647.0,0.02203013]
[1768008361875,0.0301871,90648.0,90647.0,0.02212]
[1768008362079,0.0301871,90648.0,90646.0,0.02212]
[1768008362474,0.03,90647.0,90646.0,0.02212]
[1768008364759,0.03,90647.0,90646.0,0.02203013]
[1768008365557,0.0001871,90648.0,90646.0,0.02203013]
[1768008369022,0.0301871,90648.0,90646.0,0.02203013]
[1768008369593,0.0301871,90648.0,90644.0,0.02208]
[1768008369978,0.03,90647.0,90644.0,0.02208]
[1768008371092,0.03,90646.0,90644.0,0.02208]
[1768008372105,0.03,90645.0,90644.0,0.02208]
[1768008373293,0.0001871,90648.0,90644.0,0.02208]
[1768008374068,0.0301871,90648.0,90645.0,0.04734181]
[1768008374576,0.0301871,90648.0,90644.0,0.02208]
[1768008375117,0.03,90647.0,90644.0,0.02208]
[1768008376384,0.03,90646.0,90644.0,0.02208]
[1768008377471,0.03,90645.0,90644.0,0.02208]
[1768008378471,0.0001871,90648.0,90644.0,0.02208]
[1768008378799,0.0001871,90648.0,90644.0,0.06942181]
[1768008382718,0.06618668,90653.0,90644.0,0.06942181]
[1768008382719,0.0001511,90657.0,90648.0,0.04752881]
[1768008382926,0.0301511,90657.0,90648.0,0.04752881]
[1768008383106,0.0301511,90657.0,90648.0,0.04734181]
[1768008386086,0.03,90655.0,90648.0,0.04734181]
[1768008386509,0.04103083,90655.0,90648.0,0.04734181]
[1768008387292,0.03,90655.0,90648.0,0.04734181]
[1768008388576,0.04103083,90655.0,90648.0,0.04734181]
[1768008388917,0.04103083,90655.0,90644.0,0.02208]
[1768008388918,0.03,90664.0,90657.0,0.04734181]
[1768008389123,0.04102997,90662.0,90655.0,0.01]
[1768008389336,0.04102997,90662.0,90655.0,0.03208]
[1768008389337,0.08515354,90656.0,90655.0,0.03208]
[1768008389568,0.08515354,90656.0,90655.0,0.02208]
[1768008389744,0.03,90656.0,90655.0,0.02218]
[1768008390265,0.03,90657.0,90655.0,0.02218]
[1768008391272,0.08515354,90656.0,90655.0,0.02218]
[1768008391878,0.03,90656.0,90655.0,0.02218]
[1768008395397,0.03,90659.0,90655.0,0.02218]
[1768008398986,0.03,90659.0,90655.0,0.0001]
[1768008403685,0.04103034,90659.0,90655.0,0.0001]
[1768008404279,0.03,90659.0,90655.0,0.0001]
[1768008407887,0.07721443,90657.0,90655.0,0.0001]
[1768008408099,0.03,90657.0,90655.0,0.0001]
[1768008408839,0.03,90656.0,90655.0,0.0001]
[1768008410032,0.04103034,90659.0,90655.0,0.0001]
[1768008410237,0.03,90657.0,90655.0,0.0001]
[1768008411219,0.03,90656.0,90655.0,0.0001]
[1768008411867,0.03,90656.0,90650.0,0.06761732]
[1768008412315,0.0001,90657.0,90650.0,0.06761732]
[1768008414378,0.0001,90657.0,90651.0,0.04588818]
[1768008417220,0.0301,90657.0,90652.0,0.06796818]
[1768008418244,0.03,90656.0,90652.0,0.06796818]
[1768008419197,0.0001,90657.0,90652.0,0.06796818]
[1768008420987,0.0001,90657.0,90654.0,0.01103095]
[1768008421183,1e-06,90657.0,90654.0,0.01103095]
[1768008421879,1e-06,90657.0,90653.0,0.04598818]
[1768008422376,1e-06,90657.0,90653.0,0.05701925]
[1768008422571,1e-06,90657.0,90653.0,0.04598818]
[1768008423257,1e-06,90657.0,90653.0,0.05701925]
[1768008423472,1e-06,90657.0,90653.0,0.04598818]
[1768008427785,1e-06,90657.0,90653.0,0.0001]
[1768008432513,1e-06,90657.0,90653.0,0.04570845]
[1768008436778,1e-06,90657.0,90653.0,0.0001]
[1768008454338,1e-06,90657.0,90653.0,0.01113107]
[1768008454562,1e-06,90657.0,90653.0,0.0001]
[1768008454949,1e-06,90657.0,90653.0,0.01113107]
[1768008455631,1e-06,90657.0,90654.0,0.01103095]
[1768008456187,1e-06,90657.0,90653.0,0.01113107]
[1768008456992,1e-06,90657.0,90653.0,0.0001]
[1768008457600,1e-06,90657.0,90653.0,0.01113107]
[1768008458623,0.0883441,90660.0,90659.0,0.000601]
[1768008458847,0.0883441,90660.0,90659.0,0.00053286]
[1768008460070,6.927e-05,90659.0,90653.0,0.02218]
[1768008465256,0.03,90656.0,90653.0,0.022081]
[1768008465457,0.04103119,90652.0,90643.0,0.04578972]
[1768008465633,0.03,90648.0,90644.0,0.02208]
[1768008465836,0.03,90646.0,90645.0,0.02208]
[1768008466065,0.03,90646.0,90643.0,0.04578972]
[1768008466316,0.0661883,90652.0,90639.0,0.00010113]
[1768008466317,0.03,90642.0,90640.0,0.02208]